fUST/lending_fUST_20250505
["ID","MTS","AMOUNT","RATE_DAILY","PERIOD"]
[359977167,1746459055005,-500.0,0.00035673,5]
[359977168,1746459055014,-500.0,0.00035673,5]
[359977169,1746459055023,-500.0,0.00035673,5]
[359977170,1746459055032,-500.0,0.00035673,5]
[359977171,1746459055043,-500.0,0.00035673,5]
[359977172,1746459055052,-500.0,0.00035673,5]
[359977173,1746459055061,-502.55875453,0.00035673,5]
[359977174,1746459055071,-500.0,0.00035673,5]
[359977175,1746459055090,-500.0,0.00035673,5]
[359977176,1746459055101,-500.0,0.00035673,5]
[359977177,1746459055111,-505.66836437,0.00035673,5]
[359977178,1746459055121,-501.10727872,0.00035673,5]
[359977179,1746459055131,-500.0,0.00035673,5]
[359977180,1746459055141,-500.46667952,0.00035673,5]
[359977181,1746459055150,-500.0,0.00035673,5]
[359977182,1746459055161,-500.0,0.00035673,5]
[359977183,1746459055170,-500.0,0.00035673,5]
[359977184,1746459055181,-500.0,0.00035673,5]
[359977185,1746459055191,-501.67952829,0.00035673,5]
[359977186,1746459055200,-500.69957845,0.00035673,5]
[359977187,1746459055210,-500.0,0.00035673,5]
[359977188,1746459055221,-500.0,0.00035673,5]
[359977189,1746459055231,-500.28110513,0.00035673,5]
[359977190,1746459055242,-165.88066404,0.00035673,5]
[359977191,1746459055252,-500.0,0.00035673,5]
[359977192,1746459055261,-500.921792,0.00035673,5]
[359977193,1746459055272,-500.0,0.00035673,5]
[359977194,1746459055282,-500.84072205,0.00035673,3]
[359977195,1746459055292,-150.0,0.00035673,5]
[359977196,1746459055302,-500.47963051,0.00035673,5]
[359977197,1746459055311,-500.0,0.00035673,5]
[359977198,1746459055321,-512.96597108,0.00035673,5]
[359977199,1746459055330,-500.21956573,0.00035673,5]
[359977200,1746459055340,-500.0,0.00035673,5]
[359977201,1746459055350,-500.0,0.00035673,5]
[359977202,1746459055359,-500.0,0.00035673,5]
[359977203,1746459055370,-151.0,0.00035673,14]
[359977204,1746459055380,-151.0,0.00035673,14]
[359977205,1746459055390,-151.0,0.00035673,14]
[359977206,1746459055400,-279.686333,0.00035673,14]
[359977207,1746459055410,-151.0,0.00035673,14]
[359977208,1746459055423,-851.322528,0.00035673,14]
[359977209,1746459055433,-851.322528,0.00035673,14]
[359977210,1746459055443,-151.0,0.00035673,14]
[359977211,1746459055453,-151.0,0.00035673,14]
[359977212,1746459055463,-178.0,0.00035674,2]
[359977213,1746459055473,-12607.13495863,0.0003568,7]
[359977214,1746459055484,-160.0,0.0003568,7]
[359977215,1746459055495,-841.77443764,0.0003568,7]
[359977216,1746459055504,-421.83547488,0.0003568,7]
[359977217,1746459055514,-151.0,0.00035698,14]
[359977218,1746459055524,-151.0,0.00035698,14]
[359977219,1746459055534,-151.0,0.00035698,3]
[359977220,1746459055543,-1180.0,0.00035698,5]
[359977221,1746459055554,-151.0,0.00035698,5]
[359977222,1746459055564,-247.00376777,0.00035698,5]
[359977223,1746459055574,-349.0,0.00035698,5]
[359977224,1746459055583,-500.0,0.00035698,5]
[359977225,1746459055592,-19982.51,0.000357,30]
[359977226,1746459055602,-1698.23,0.000357,7]
[359977227,1746459055612,-4384.56,0.000357,30]
[359977228,1746459055621,-425.787795,0.000357,14]
[359977229,1746459055631,-425.787795,0.000357,14]
[359977230,1746459055641,-179.62281,0.000357,14]
[359977231,1746459055651,-179.62281,0.000357,14]
[359977232,1746459055661,-507.954413,0.000357,14]
[359977233,1746459055670,-507.954413,0.000357,14]
[359977234,1746459055680,-3800.721494,0.000357,2]
[359977235,1746459055690,-155.696742,0.000357,14]
[359977236,1746459055703,-155.696742,0.000357,14]
[359977237,1746459055713,-151.0,0.000357,14]
[359977238,1746459055723,-158.049974,0.000357,2]
[359977239,1746459055734,-158.049974,0.000357,2]
[359977240,1746459055745,-182.23035355,0.000357,7]
[359977241,1746459055755,-161.245488,0.00035725,14]
[359977242,1746459055765,-161.245488,0.00035725,14]
[359977243,1746459055776,-1511.108173,0.00035725,14]
[359977244,1746459055786,-1511.108173,0.00035725,14]
[359977245,1746459055796,-151.0,0.00035726,14]
[359977246,1746459055806,-284.9150179,0.00035726,14]
[359977247,1746459055817,-151.0,0.00035726,3]
[359977248,1746459055827,-1180.0,0.00035726,5]
[359977249,1746459055837,-198.0,0.00035726,5]
[359977250,1746459055847,-383.63810765,0.00035726,5]
[359977251,1746459055857,-245.0,0.00035753,14]
[359977252,1746459055866,-193.65757542,0.00035753,3]
[359977253,1746459055876,-1180.0,0.00035753,5]
[359977254,1746459055886,-151.0,0.00035753,14]
[359977255,1746459055896,-186.219661,0.00035753,14]
[359977256,1746459055906,-178.905606,0.0003578,14]
[359977257,1746459055916,-151.0,0.0003578,14]
[359977258,1746459055926,-151.0,0.0003578,14]
[359977259,1746459055936,-182.149004,0.0003578,14]
[359977260,1746459055946,-182.149004,0.0003578,14]
[359977261,1746459055956,-218.628785,0.0003578,14]
[359977262,1746459055966,-218.628785,0.0003578,14]
[359977263,1746459055976,-1180.0,0.0003578,5]
[359977264,1746459055987,-403.0,0.00035792,2]
[359977265,1746459055998,-1180.0,0.00035808,5]
[359977266,1746459056008,-1180.0,0.00035835,5]
[359977267,1746459056019,-1180.0,0.00035863,5]
[359977268,1746459056029,-601.68674669,0.00035864,2]
[359977269,1746459056039,-500.0,0.00035873,5]
[359977270,1746459056169,-500.0,0.00035873,5]
[359977271,1746459056180,-500.0,0.00035873,5]
[359977272,1746459056190,-500.0,0.00035873,5]
[359977273,1746459056199,-500.0,0.00035873,5]
[359977274,1746459056209,-151.0,0.00035873,14]
[359977275,1746459056218,-279.686333,0.00035873,14]
[359977276,1746459056228,-151.0,0.00035873,14]
[359977277,1746459056238,-851.322528,0.00035873,14]
[359977278,1746459056247,-851.322528,0.00035873,14]
[359977279,1746459056257,-151.0,0.00035873,14]
[359977280,1746459056265,-222.96088129,0.00035876,2]
[359977281,1746459056275,-172.89711998,0.00035889,10]
[359977282,1746459056285,-1180.0,0.0003589,5]
[359977283,1746459056294,-153.790371,0.0003589,7]
[359977284,1746459056303,-151.0,0.0003589,14]
[359977285,1746459056312,-151.0,0.0003589,14]
[359977286,1746459056321,-151.0,0.0003589,14]
[359977287,1746459056331,-278.497364,0.0003589,14]
[359977288,1746459056340,-400.0,0.0003589,14]
[359977289,1746459056350,-500.0,0.0003589,13]
[359977290,1746459056359,-1500.0,0.0003589,31]
[359977291,1746459056369,-400.0,0.0003589,14]
[359977292,1746459056378,-2309.33,0.0003589,14]
[359977293,1746459056388,-400.0,0.0003589,14]
[359977294,1746459056397,-400.0,0.0003589,14]
[359977295,1746459056406,-400.0,0.0003589,14]
[359977296,1746459056416,-151.0,0.0003589,14]
[359977297,1746459056428,-151.0,0.0003589,14]
[359977298,1746459056438,-293.934522,0.0003589,14]
[359977299,1746459056447,-400.0,0.0003589,14]
[359977300,1746459056457,-588.39,0.0003589,14]
[359977301,1746459056468,-402.48222823,0.0003589,14]
[359977302,1746459056477,-403.45259704,0.0003589,14]
[359977303,1746459056486,-400.0,0.0003589,14]
[359977304,1746459056496,-506.25626387,0.0003589,14]
[359977305,1746459056507,-205.89412048,0.0003589,14]
[359977306,1746459056517,-400.0,0.0003589,14]
[359977307,1746459056526,-400.0,0.0003589,14]
[359977308,1746459056535,-575.3,0.0003589,14]
[359977309,1746459056544,-400.0,0.0003589,14]
[359977310,1746459056554,-400.0,0.0003589,14]
[359977311,1746459056563,-400.0,0.0003589,14]
[359977312,1746459056572,-411.27678625,0.0003589,14]
[359977313,1746459056582,-400.0,0.0003589,14]
[359977314,1746459056592,-400.0,0.0003589,14]
[359977315,1746459056602,-400.0,0.0003589,14]
[359977316,1746459056611,-400.0,0.0003589,14]
[359977317,1746459056620,-182.19115092,0.0003589,14]
[359977318,1746459056630,-400.0,0.0003589,14]
[359977319,1746459056639,-400.0,0.0003589,14]
[359977320,1746459056648,-400.0,0.0003589,14]
[359977321,1746459056658,-400.0,0.0003589,14]
[359977322,1746459056667,-400.0,0.0003589,14]
[359977323,1746459056677,-425.787795,0.0003589,14]
[359977324,1746459056686,-425.787795,0.0003589,14]
[359977325,1746459056695,-425.787795,0.0003589,14]
[359977326,1746459056705,-425.787795,0.0003589,14]
[359977327,1746459056715,-425.787795,0.0003589,14]
[359977328,1746459056724,-425.78779,0.0003589,14]
[359977329,1746459056733,-400.0,0.0003589,14]
[359977330,1746459056744,-400.0,0.0003589,14]
[359977331,1746459056753,-400.0,0.0003589,14]
[359977332,1746459056763,-400.0,0.0003589,14]
[359977333,1746459056772,-415.63924941,0.0003589,14]
[359977334,1746459056781,-400.0,0.0003589,14]
[359977335,1746459056790,-151.0,0.0003589,14]
[359977336,1746459056799,-400.0,0.0003589,14]
[359977337,1746459056809,-151.0,0.0003589,14]
[359977338,1746459056818,-151.0,0.0003589,14]
[359977339,1746459056827,-151.0,0.0003589,14]
[359977340,1746459056837,-400.0,0.0003589,14]
[359977341,1746459056847,-400.0,0.0003589,14]
[359977342,1746459056856,-400.0,0.0003589,14]
[359977343,1746459056865,-400.0,0.0003589,14]
[359977344,1746459056874,-400.0,0.0003589,14]
[359977345,1746459056883,-400.0,0.0003589,14]
[359977346,1746459056893,-596.12,0.0003589,14]
[359977347,1746459056902,-400.0,0.0003589,14]
[359977348,1746459056912,-400.0,0.0003589,14]
[359977349,1746459056921,-400.0,0.0003589,14]
[359977350,1746459056930,-287.98762207,0.0003589,14]
[359977351,1746459056939,-411.48753384,0.0003589,14]
[359977352,1746459056950,-400.0,0.0003589,14]
[359977353,1746459056959,-400.0,0.0003589,14]
[359977354,1746459056969,-504.38635866,0.0003589,14]
[359977355,1746459056978,-488.42,0.0003589,14]
[359977356,1746459056987,-400.0,0.0003589,14]
[359977357,1746459056997,-400.0,0.0003589,14]
[359977358,1746459057006,-151.0,0.0003589,14]
[359977359,1746459057016,-199.964323,0.0003589,14]
[359977360,1746459057025,-400.0,0.0003589,14]
[359977361,1746459057035,-400.0,0.0003589,14]
[359977362,1746459057044,-479.33,0.0003589,14]
[359977363,1746459057053,-400.0,0.0003589,14]
[359977364,1746459057063,-400.0,0.0003589,14]
[359977365,1746459057072,-400.0,0.0003589,14]
[359977366,1746459057081,-400.0,0.0003589,14]
[359977367,1746459057090,-400.0,0.0003589,14]
[359977368,1746459057100,-151.0,0.0003589,14]
[359977369,1746459057109,-400.0,0.0003589,14]
[359977370,1746459057118,-321.38530362,0.0003589,14]
[359977371,1746459057128,-400.0,0.0003589,14]
[359977372,1746459057137,-400.0,0.0003589,14]
[359977373,1746459057147,-400.0,0.0003589,14]
[359977374,1746459057156,-400.0,0.0003589,14]
[359977375,1746459057165,-400.0,0.0003589,14]
[359977376,1746459057175,-400.0,0.0003589,14]
[359977377,1746459057184,-400.0,0.0003589,14]
[359977378,1746459057193,-400.0,0.0003589,14]
[359977379,1746459057203,-547.14485157,0.0003589,2]
[359977380,1746459057212,-400.0,0.0003589,14]
[359977381,1746459057221,-400.0,0.0003589,2]
[359977382,1746459057231,-400.0,0.0003589,14]
[359977383,1746459057241,-400.0,0.0003589,14]
[359977384,1746459057250,-400.0,0.0003589,2]
[359977385,1746459057260,-501.93023838,0.0003589,14]
[359977386,1746459057270,-541.84,0.0003589,14]
[359977387,1746459057279,-400.0,0.0003589,14]
[359977388,1746459057288,-400.0,0.0003589,14]
[359977389,1746459057298,-400.0,0.0003589,2]
[359977390,1746459057307,-400.0,0.0003589,14]
[359977391,1746459057317,-279.686341,0.0003589,14]
[359977392,1746459057326,-400.0,0.0003589,14]
[359977393,1746459057335,-400.0,0.0003589,14]
[359977394,1746459057346,-400.0,0.0003589,14]
[359977395,1746459057355,-400.0,0.0003589,14]
[359977396,1746459057365,-400.0,0.0003589,14]
[359977397,1746459057374,-400.0,0.0003589,14]
[359977398,1746459057384,-400.0,0.0003589,14]
[359977399,1746459057394,-300.0,0.0003589,14]
[359977400,1746459057403,-544.89,0.0003589,14]
[359977401,1746459057413,-400.0,0.0003589,14]
[359977402,1746459057424,-768.1,0.0003589,14]
[359977403,1746459057436,-400.0,0.0003589,14]
[359977404,1746459057529,-400.0,0.0003589,14]
[359977405,1746459057539,-400.0,0.0003589,14]
[359977406,1746459057549,-863.27,0.0003589,14]
[359977407,1746459057559,-179.62281,0.0003589,14]
[359977408,1746459057568,-179.62281,0.0003589,14]
[359977409,1746459057577,-179.62281,0.0003589,14]
[359977410,1746459057587,-826.21,0.0003589,14]
[359977411,1746459057596,-179.62281,0.0003589,14]
[359977412,1746459057606,-179.62281,0.0003589,14]
[359977413,1746459057615,-179.622814,0.0003589,14]
[359977414,1746459057625,-500.0,0.0003589,14]
[359977415,1746459057634,-407.59505634,0.0003589,14]
[359977416,1746459057645,-511.49,0.0003589,14]
[359977417,1746459057654,-400.0,0.0003589,14]
[359977418,1746459057664,-755.85,0.0003589,14]
[359977419,1746459057674,-400.0,0.0003589,14]
[359977420,1746459057684,-507.954413,0.0003589,14]
[359977421,1746459057693,-507.954413,0.0003589,14]
[359977422,1746459057703,-507.954413,0.0003589,14]
[359977423,1746459057713,-465.45,0.0003589,14]
[359977424,1746459057722,-151.0,0.0003589,14]
[359977425,1746459057732,-507.954413,0.0003589,14]
[359977426,1746459057741,-507.954413,0.0003589,14]
[359977427,1746459057751,-507.95441,0.0003589,14]
[359977428,1746459057761,-2466.64,0.0003589,14]
[359977429,1746459057771,-851.322528,0.0003589,14]
[359977430,1746459057780,-400.0,0.0003589,14]
[359977431,1746459057790,-851.32252297,0.0003589,14]
[359977432,1746459057800,-1964.51,0.0003589,14]
[359977433,1746459057809,-3800.721494,0.0003589,2]
[359977434,1746459057819,-3800.721494,0.0003589,2]
[359977435,1746459057828,-3800.721488,0.0003589,2]
[359977436,1746459057838,-400.0,0.0003589,14]
[359977437,1746459057847,-406.0022176,0.0003589,14]
[359977438,1746459057857,-536.35369783,0.0003589,14]
[359977439,1746459057867,-712.69,0.0003589,14]
[359977440,1746459057876,-400.0,0.0003589,14]
[359977441,1746459057886,-664.59,0.0003589,14]
[359977442,1746459057895,-400.0,0.0003589,14]
[359977443,1746459057904,-400.0,0.0003589,14]
[359977444,1746459057914,-400.0,0.0003589,14]
[359977445,1746459057924,-400.0,0.0003589,14]
[359977446,1746459057934,-400.0,0.0003589,14]
[359977447,1746459057943,-2674.62,0.0003589,14]
[359977448,1746459057954,-400.0,0.0003589,14]
[359977449,1746459057963,-720.81,0.0003589,14]
[359977450,1746459057974,-400.0,0.0003589,14]
[359977451,1746459057984,-500.0,0.0003589,14]
[359977452,1746459057993,-400.0,0.0003589,14]
[359977453,1746459058003,-400.0,0.0003589,14]
[359977454,1746459058012,-400.0,0.0003589,14]
[359977455,1746459058021,-400.0,0.0003589,14]
[359977456,1746459058031,-544.88225736,0.0003589,14]
[359977457,1746459058041,-754.91,0.0003589,14]
[359977458,1746459058051,-217.79190577,0.0003589,14]
[359977459,1746459058060,-894.97,0.0003589,14]
[359977460,1746459058070,-400.0,0.0003589,14]
[359977461,1746459058079,-400.0,0.0003589,14]
[359977462,1746459058089,-400.0,0.0003589,14]
[359977463,1746459058099,-400.0,0.0003589,14]
[359977464,1746459058108,-400.0,0.0003589,14]
[359977465,1746459058118,-151.0,0.0003589,14]
[359977466,1746459058133,-151.0,0.0003589,14]
[359977467,1746459058155,-400.0,0.0003589,14]
[359977468,1746459058172,-400.0,0.0003589,14]
[359977469,1746459058193,-402.60440826,0.0003589,14]
[359977470,1746459058213,-400.0,0.0003589,14]
[359977471,1746459058232,-400.0,0.0003589,14]
[359977472,1746459058251,-400.0,0.0003589,14]
[359977473,1746459058267,-400.0,0.0003589,14]
[359977474,1746459058283,-400.0,0.0003589,14]
[359977475,1746459058301,-1014.16,0.0003589,14]
[359977476,1746459058321,-204.84796557,0.0003589,14]
[359977477,1746459058336,-400.0,0.0003589,14]
[359977478,1746459058350,-400.0,0.0003589,14]
[359977479,1746459058369,-400.0,0.0003589,14]
[359977480,1746459058383,-446.99,0.0003589,14]
[359977481,1746459058399,-400.0,0.0003589,14]
[359977482,1746459058414,-400.0,0.0003589,14]
[359977483,1746459058430,-775.91,0.0003589,14]
[359977484,1746459058445,-1800.47,0.0003589,14]
[359977485,1746459058461,-400.0,0.0003589,14]
[359977486,1746459058476,-400.0,0.0003589,14]
[359977487,1746459058491,-155.696742,0.0003589,14]
[359977488,1746459058506,-204.33896911,0.0003589,14]
[359977489,1746459058522,-155.696742,0.0003589,14]
[359977490,1746459058537,-155.696742,0.0003589,14]
[359977491,1746459058553,-400.0,0.0003589,14]
[359977492,1746459058569,-1056.43,0.0003589,14]
[359977493,1746459058584,-510.99,0.0003589,14]
[359977494,1746459058600,-155.696742,0.0003589,14]
[359977495,1746459058614,-155.696742,0.0003589,14]
[359977496,1746459058629,-155.696751,0.0003589,14]
[359977497,1746459058645,-400.0,0.0003589,14]
[359977498,1746459058664,-400.0,0.0003589,14]
[359977499,1746459058678,-218.67067451,0.0003589,14]
[359977500,1746459058693,-940.61,0.0003589,14]
[359977501,1746459058708,-1385.61,0.0003589,14]
[359977502,1746459058722,-400.0,0.0003589,14]
[359977503,1746459058737,-849.55,0.0003589,14]
[359977504,1746459058752,-400.0,0.0003589,14]
[359977505,1746459058766,-1523.07,0.0003589,14]
[359977506,1746459058780,-400.0,0.0003589,14]
[359977507,1746459058794,-933.0,0.0003589,14]
[359977508,1746459058809,-1824.42,0.0003589,14]
[359977509,1746459058823,-400.0,0.0003589,14]
[359977510,1746459058837,-467.3906669,0.0003589,14]
[359977511,1746459058852,-161.245488,0.0003589,14]
[359977512,1746459058867,-161.245488,0.0003589,14]
[359977513,1746459058881,-161.245488,0.0003589,14]
[359977514,1746459058896,-161.24549,0.0003589,14]
[359977515,1746459058910,-400.0,0.0003589,14]
[359977516,1746459058926,-400.0,0.0003589,14]
[359977517,1746459058941,-400.0,0.0003589,14]
[359977518,1746459058956,-400.0,0.0003589,14]
[359977519,1746459058971,-400.0,0.0003589,14]
[359977520,1746459058985,-400.0,0.0003589,14]
[359977521,1746459059000,-400.0,0.0003589,14]
[359977522,1746459059014,-404.66497173,0.0003589,14]
[359977523,1746459059027,-400.0,0.0003589,14]
[359977524,1746459059043,-616.95,0.0003589,14]
[359977525,1746459059056,-400.0,0.0003589,14]
[359977526,1746459059065,-200.0,0.0003589,14]
[359977528,1746459059200,-400.0,0.0003589,14]
[359977529,1746459059224,-400.0,0.0003589,14]
[359977530,1746459059233,-400.0,0.0003589,14]
[359977531,1746459059243,-400.0,0.0003589,14]
[359977532,1746459059252,-400.0,0.0003589,14]
[359977533,1746459059261,-323.67214338,0.0003589,14]
[359977534,1746459059270,-400.0,0.0003589,14]
[359977535,1746459059280,-400.0,0.0003589,14]
[359977536,1746459059289,-400.0,0.0003589,14]
[359977537,1746459059298,-400.0,0.0003589,14]
[359977538,1746459059307,-400.0,0.0003589,14]
[359977539,1746459059316,-400.0,0.0003589,14]
[359977540,1746459059325,-203.38039065,0.0003589,14]
[359977541,1746459059335,-400.0,0.0003589,14]
[359977542,1746459059344,-400.0,0.0003589,14]
[359977543,1746459059353,-400.0,0.0003589,14]
[359977544,1746459059362,-400.0,0.0003589,14]
[359977545,1746459059371,-926.78,0.0003589,14]
[359977546,1746459059381,-400.0,0.0003589,14]
[359977547,1746459059391,-151.0,0.0003589,14]
[359977548,1746459059400,-151.0,0.0003589,14]
[359977549,1746459059410,-400.0,0.0003589,14]
[359977550,1746459059423,-400.0,0.0003589,14]
[359977551,1746459059433,-1511.108173,0.0003589,14]
[359977552,1746459059442,-1511.108173,0.0003589,14]
[359977553,1746459059452,-400.0,0.0003589,14]
[359977554,1746459059461,-1511.108173,0.0003589,14]
[359977555,1746459059471,-1511.108169,0.0003589,14]
[359977556,1746459059481,-529.7531645,0.0003589,14]
[359977557,1746459059491,-400.0,0.0003589,14]
[359977558,1746459059501,-402.98115231,0.0003589,14]
[359977559,1746459059511,-1120.69,0.0003589,14]
[359977560,1746459059520,-400.0,0.0003589,14]
[359977561,1746459059530,-400.0,0.0003589,14]
[359977562,1746459059540,-400.0,0.0003589,14]
[359977563,1746459059549,-724.1,0.0003589,14]
[359977564,1746459059559,-400.0,0.0003589,14]
[359977565,1746459059569,-304.23529294,0.0003589,14]
[359977566,1746459059579,-400.0,0.0003589,14]
[359977567,1746459059589,-559.2,0.0003589,14]
[359977568,1746459059599,-400.0,0.0003589,14]
[359977569,1746459059609,-400.0,0.0003589,14]
[359977570,1746459059618,-400.0,0.0003589,14]
[359977571,1746459059628,-585.11,0.0003589,14]
[359977572,1746459059639,-400.0,0.0003589,14]
[359977573,1746459059648,-1087.99,0.0003589,14]
[359977574,1746459059658,-400.0,0.0003589,14]
[359977575,1746459059668,-400.0,0.0003589,14]
[359977576,1746459059678,-400.0,0.0003589,14]
[359977577,1746459059688,-3423.04,0.0003589,2]
[359977578,1746459059698,-158.049974,0.0003589,2]
[359977579,1746459059708,-158.049974,0.0003589,2]
[359977580,1746459059717,-158.049974,0.0003589,2]
[359977581,1746459059727,-158.049966,0.0003589,2]
[359977582,1746459059736,-400.0,0.0003589,14]
[359977583,1746459059746,-543.68,0.0003589,14]
[359977584,1746459059755,-469.06,0.0003589,14]
[359977585,1746459059764,-400.0,0.0003589,14]
[359977586,1746459059774,-151.0,0.0003589,14]
[359977587,1746459059783,-247.054626,0.0003589,14]
[359977588,1746459059793,-400.0,0.0003589,14]
[359977589,1746459059802,-400.0,0.0003589,14]
[359977590,1746459059812,-412.47630115,0.0003589,14]
[359977591,1746459059821,-400.0,0.0003589,14]
[359977592,1746459059831,-414.31,0.0003589,14]
[359977593,1746459059840,-400.0,0.0003589,14]
[359977594,1746459059850,-400.0,0.0003589,14]
[359977595,1746459059859,-500.0,0.0003589,14]
[359977596,1746459059868,-400.0,0.0003589,14]
[359977597,1746459059878,-400.0,0.0003589,14]
[359977598,1746459059887,-400.0,0.0003589,14]
[359977599,1746459059897,-400.0,0.0003589,14]
[359977600,1746459059906,-432.44,0.0003589,14]
[359977601,1746459059916,-466.23,0.0003589,14]
[359977602,1746459059925,-400.0,0.0003589,14]
[359977603,1746459059935,-157.53076727,0.0003589,14]
[359977604,1746459059945,-400.0,0.0003589,14]
[359977605,1746459059954,-400.0,0.0003589,14]
[359977606,1746459059964,-444.65,0.0003589,14]
[359977607,1746459059973,-400.0,0.0003589,14]
[359977608,1746459059984,-1446.92,0.0003589,14]
[359977609,1746459059994,-505.28799801,0.0003589,14]
[359977610,1746459060004,-1719.04,0.0003589,14]
[359977611,1746459060014,-400.0,0.0003589,14]
[359977612,1746459060024,-400.0,0.0003589,14]
[359977613,1746459060034,-400.0,0.0003589,14]
[359977614,1746459060044,-2655.61,0.0003589,14]
[359977615,1746459060053,-400.0,0.0003589,14]
[359977616,1746459060063,-400.0,0.0003589,14]
[359977617,1746459060072,-473.5,0.0003589,14]
[359977618,1746459060082,-4564.81,0.0003589,14]
[359977619,1746459060091,-401.81594102,0.0003589,14]
[359977620,1746459060101,-884.29,0.0003589,14]
[359977621,1746459060111,-400.0,0.0003589,14]
[359977622,1746459060121,-400.0,0.0003589,14]
[359977623,1746459060130,-400.0,0.0003589,14]
[359977624,1746459060139,-400.0,0.0003589,14]
[359977625,1746459060149,-1463.32,0.0003589,14]
[359977626,1746459060158,-1464.22,0.0003589,14]
[359977627,1746459060168,-400.0,0.0003589,14]
[359977628,1746459060177,-400.0,0.0003589,14]
[359977629,1746459060186,-400.0,0.0003589,14]
[359977630,1746459060195,-414.2,0.0003589,14]
[359977631,1746459060205,-400.0,0.0003589,14]
[359977632,1746459060214,-400.0,0.0003589,14]
[359977633,1746459060223,-3846.08,0.0003589,14]
[359977634,1746459060233,-400.0,0.0003589,14]
[359977635,1746459060243,-627.6,0.0003589,14]
[359977636,1746459060252,-400.0,0.0003589,14]
[359977637,1746459060262,-2780.51,0.0003589,14]
[359977638,1746459060271,-1202.56,0.0003589,14]
[359977639,1746459060281,-743.26,0.0003589,14]
[359977640,1746459060291,-665.6,0.0003589,14]
[359977641,1746459060301,-785.62,0.0003589,14]
[359977642,1746459060310,-500.0,0.0003589,14]
[359977643,1746459060320,-540.73,0.0003589,14]
[359977644,1746459060330,-2402.28,0.0003589,14]
[359977645,1746459060339,-400.0,0.0003589,14]
[359977646,1746459060349,-1869.88,0.0003589,14]
[359977647,1746459060358,-400.0,0.0003589,14]
[359977648,1746459060367,-400.0,0.0003589,14]
[359977649,1746459060377,-1000.0,0.0003589,14]
[359977650,1746459060387,-400.0,0.0003589,14]
[359977651,1746459060397,-1085.52,0.0003589,14]
[359977652,1746459060406,-400.0,0.0003589,14]
[359977653,1746459060416,-928.49,0.0003589,14]
[359977654,1746459060428,-400.0,0.0003589,14]
[359977655,1746459060438,-716.51,0.0003589,14]
[359977656,1746459060447,-400.0,0.0003589,14]
[359977657,1746459060457,-400.0,0.0003589,14]
[359977658,1746459060466,-1279.41,0.0003589,14]
[359977659,1746459060476,-433.61,0.0003589,14]
[359977660,1746459060485,-403.97235423,0.0003589,14]
[359977661,1746459060495,-4058.97,0.0003589,14]
[359977662,1746459060507,-400.0,0.0003589,14]
[359977663,1746459060516,-2217.53,0.0003589,14]
[359977664,1746459060526,-1030.09,0.0003589,14]
[359977665,1746459060536,-400.0,0.0003589,14]
[359977666,1746459060546,-400.0,0.0003589,14]
[359977667,1746459060556,-400.0,0.0003589,14]